fUST/lending_fUST_20250416
["ID","MTS","AMOUNT","RATE_DAILY","PERIOD"]
[358137553,1744758451579,-610.77,0.00046009,120]
[358137554,1744758451630,-5496.85,0.00046009,120]
[358137555,1744758451679,-500.0,0.00046009,120]
[358137556,1744758451725,-500.0,0.00046009,120]
[358137557,1744758451773,-5406.99,0.00046009,120]
[358137558,1744758451822,-991.27,0.00046009,120]
[358137559,1744758451986,-698.74,0.00046009,120]
[358137560,1744758452077,-672.96,0.00046009,120]
[358137561,1744758452130,-610.77,0.00046009,120]
[358137562,1744758452182,-182.40684087,0.00046009,120]
[358137563,1744758452231,-500.0,0.00046009,120]
[358137564,1744758452283,-5406.99,0.00046009,120]
[358137565,1744758452334,-991.35234618,0.00046009,120]
[358137566,1744758452386,-698.74,0.00046009,120]
[358137567,1744758452436,-610.77,0.00046009,120]
[358137568,1744758452491,-672.96,0.00046009,120]
[358137569,1744758452541,-5496.85,0.00046009,120]
[358137570,1744758452598,-698.74,0.00046009,120]
[358137571,1744758452650,-5406.99,0.00046009,120]
[358137572,1744758452705,-5496.85,0.00046009,120]
[358137573,1744758452756,-610.77,0.00046009,120]
[358137574,1744758452805,-672.96,0.00046009,120]
[358137575,1744758452854,-500.0,0.00046009,120]
[358137576,1744758452903,-500.0,0.00046009,120]
[358137577,1744758452952,-698.74,0.00046009,120]
[358137578,1744758453001,-5496.85,0.00046009,120]
[358137579,1744758453049,-4448.95993795,0.00046009,120]
[358137617,1744758632401,-272.07162368,0.00025205,2]
[358137618,1744758632414,-227.92837632,0.00025205,2]
[358137619,1744758632423,-312.5017938,0.00028,10]
[358137621,1744758632433,-312.5017938,0.00028,10]
[358137624,1744758632442,-287.73541969,0.00030137,2]
[358137627,1744758632463,-250.0,0.00030597,2]
[358137629,1744758632473,-389.6,0.00031685,30]
[358137631,1744758632483,-1333.0,0.00031945,120]
[358137633,1744758632492,-204.22570455,0.00033753,2]
[358137635,1744758632504,-160.0,0.00033815,2]
[358137637,1744758632514,-160.0,0.00033864,2]
[358137639,1744758632524,-400.0,0.00033867,3]
[358137641,1744758632533,-400.0,0.00033867,2]
[358137643,1744758632545,-2866.8082581,0.00033868,2]
[358137647,1744758632558,-1212.5749181,0.00033868,2]
[358137650,1744758632568,-194.4213856,0.00033868,2]
[358137652,1744758632579,-297.07439462,0.00035562,7]
[358137656,1744758632589,-300.0,0.00036356,2]
[358137659,1744758632599,-52.71946612,0.00036502,3]
[358137663,1744758632610,-507.28053388,0.00036502,3]
[358137666,1744758632621,-204.6871572,0.00036747,2]
[358137669,1744758632630,-337.962607,0.00036867,2]
[358137671,1744758632640,-707.0,0.00037152,2]
[358137673,1744758632650,-552.834,0.00037152,2]
[358137675,1744758632659,-402.0,0.00037152,2]
[358137676,1744758632669,-461.61447003,0.0003737,21]
[358137677,1744758632679,-411.79831268,0.00039178,30]
[358137678,1744758632689,-783.0,0.00039342,5]
[358137679,1744758632699,-325.65,0.000398,7]
[358137680,1744758632709,-223.33106314,0.00040986,14]
[358137681,1744758632719,-1000.0,0.00041096,6]
[358137682,1744758632728,-1000.0,0.00041233,20]
[358137683,1744758632738,-500.0,0.00041237,30]
[358137684,1744758632748,-1000.0,0.0004137,20]
[358137685,1744758632758,-839.0,0.0004137,20]
[358137686,1744758632768,-500.0,0.00042232,30]
[358137687,1744758632779,-545.15518281,0.00042403,5]
[358137696,1744758638538,-551.84481719,0.00042403,5]
[358137698,1744758638550,-400.97667316,0.00042795,90]
[358137700,1744758638559,-500.0,0.00042798,30]
[358137702,1744758638570,-600.0,0.00042912,2]
[358137704,1744758638584,-500.0,0.00043014,2]
[358137706,1744758638595,-213.2840534,0.00043093,4]
[358137709,1744758638606,-500.0,0.00043773,10]
[358137711,1744758638615,-478.23022314,0.00043789,2]
[358137713,1744758638625,-2952.5643928,0.0004379,10]
[358137728,1744758638765,-3359.9156072,0.0004379,10]
[358137731,1744758638776,-238.69,0.0004379,120]
[358137733,1744758638786,-32858.9392011,0.0004379,3]
[358137735,1744758638797,-1013.49401358,0.0004379,3]
[358137737,1744758638807,-500.0,0.00043799,31]
[358137739,1744758638817,-392.10109469,0.00043799,31]
[358137741,1744758638827,-533.88264928,0.00043799,31]
[358137743,1744758638837,-500.0,0.00043799,31]
[358137745,1744758638847,-270692.13251907,0.000438,2]
[358137747,1744758638859,-3489.84719781,0.000438,2]
[358138211,1744758643473,-292.272,0.00031685,30]
[358138213,1744758643483,-390.45991481,0.000438,2]
[358138216,1744758643508,-1282.18727936,0.000438,2]
[358138220,1744758643535,-24087.11736979,0.000438,2]
[358138232,1744758643650,-344.95327808,0.000438,2]
[358138329,1744758644630,-804.83212723,0.000438,2]
[358138332,1744758644642,-1211.49676063,0.000438,2]
[358138334,1744758644654,-570.98594543,0.000438,2]
[358138471,1744758646538,-554.64013331,0.000438,2]
[358138473,1744758646551,-909.64364974,0.000438,2]
[358138475,1744758646562,-33049.21970916,0.000438,2]
[358138477,1744758646572,-1203.59,0.00043835,120]
[358138479,1744758646583,-160.0,0.00043889,120]
[358138481,1744758646593,-7221.599103,0.0004397,2]
[358138483,1744758646604,-176.88659458,0.00043971,2]
[358138485,1744758646613,-183.70272391,0.00043971,2]
[358138487,1744758646623,-10952.9797337,0.0004399,3]
[358138489,1744758646633,-337.83133786,0.0004399,3]
[358138491,1744758646643,-5260.4,0.0004399,10]
[358138492,1744758646652,-43589.57651371,0.00044,15]
[358138493,1744758646665,-4229.24738609,0.00044,15]
[358138494,1744758646677,-1890.77668885,0.00044,15]
[358138495,1744758646689,-475.86829178,0.00044,15]
[358138614,1744759832841,-500.0,0.000255,2]
[358138615,1744759832853,-500.0,0.000255,2]
[358138616,1744759832863,-300.0,0.00025999,2]
[358138617,1744759832872,-300.0,0.00025999,2]
[358138618,1744759832881,-517.1003957,0.00026,2]
[358138619,1744759832890,-6671.6335541,0.00026,30]
[358138620,1744759832909,-11556.1447479,0.00026,30]
[358138621,1744759832919,-160.0,0.00026,30]
[358138622,1744759832928,-220.86356398,0.000269,7]
[358138623,1744759832938,-339.2829099,0.00027,2]
[358138624,1744759832949,-401.4,0.000273,31]
[358138625,1744759832958,-401.4,0.000273,31]
[358138626,1744759832967,-401.4,0.000273,31]
[358138627,1744759832977,-401.4,0.000273,31]
[358138628,1744759832988,-401.4,0.000273,31]
[358138629,1744759832998,-401.4,0.000273,31]
[358138630,1744759833007,-401.4,0.000273,31]
[358138631,1744759833017,-401.4,0.000273,31]
[358138632,1744759833027,-401.4,0.000273,31]
[358138633,1744759833037,-401.4,0.000273,31]
[358138634,1744759833047,-401.4,0.000273,31]
[358138635,1744759833057,-401.4,0.000273,31]
[358138636,1744759833067,-500.0,0.00027397,5]
[358138637,1744759833076,-312.5017938,0.00028,10]
[358138638,1744759833086,-420.0,0.00028137,2]
[358138639,1744759833095,-420.0,0.00028262,2]
[358138640,1744759833105,-250.05377874,0.0002899,2]
[358138641,1744759833115,-787.19046058,0.00029,7]
[358138642,1744759833124,-651.77777451,0.00029,7]
[358138643,1744759833134,-651.77777451,0.00029,7]
[358138644,1744759833143,-787.19046058,0.00029,7]
[358138645,1744759833153,-535.44255378,0.00029,7]
[358138646,1744759833162,-535.44255378,0.00029,7]
[358138647,1744759833171,-551.4506797,0.00029,2]
[358138648,1744759833181,-500.0,0.00029973,5]
[358138649,1744759833190,-500.0,0.00029973,4]
[358138650,1744759833200,-500.0,0.00029999,2]
[358138651,1744759833210,-500.0,0.00029999,2]
[358138652,1744759833220,-500.0,0.00029999,2]
[358138653,1744759833230,-500.0,0.00029999,2]
[358138654,1744759833240,-500.0,0.00029999,2]
[358138655,1744759833249,-500.0,0.00029999,2]
[358138656,1744759833259,-500.0,0.00029999,2]
[358138657,1744759833268,-175.70519917,0.00029999,2]
[358138658,1744759833277,-500.0,0.00029999,2]
[358138659,1744759833287,-260.83442656,0.00029999,2]
[358138660,1744759833296,-500.0,0.00029999,2]
[358138661,1744759833306,-500.0,0.00029999,2]
[358138662,1744759833316,-500.0,0.00029999,2]
[358138663,1744759833325,-500.0,0.00029999,2]
[358138664,1744759833335,-500.0,0.00029999,2]
[358138665,1744759833344,-500.0,0.00029999,2]
[358138666,1744759833354,-500.0,0.00029999,2]
[358138667,1744759833363,-247.63587331,0.00029999,2]
[358138668,1744759833373,-500.0,0.00029999,2]
[358138669,1744759833383,-543.46025484,0.00029999,2]
[358138670,1744759833393,-14293.54204314,0.0003,2]
[358138687,1744759838855,-500.0,0.00029999,2]
[358138689,1744759838865,-500.0,0.00029999,2]
[358138691,1744759838874,-500.0,0.00029999,2]
[358138693,1744759838884,-500.0,0.00029999,2]
[358138695,1744759838893,-171.52518496,0.00029999,2]
[358138697,1744759838903,-9827.65402599,0.0003,2]
[358138700,1744759838919,-10073.00015152,0.0003,2]
[358138702,1744759838931,-285.43980486,0.0003,2]
[358138704,1744759838942,-925.90000002,0.0003,2]
[358138714,1744759839032,-44034.86888626,0.0003,2]
[358138716,1744759839041,-282.0,0.0003,2]
[358138718,1744759839052,-204.51390615,0.00030052,2]
[358138719,1744759839062,-263.5618385,0.00030137,2]
[358138720,1744759839072,-587.0,0.0003045,2]
[358138721,1744759839083,-587.0,0.00030723,2]
[358138722,1744759839093,-508.26830363,0.0003095,5]
[358138723,1744759839112,-500.0,0.0003095,5]
[358138724,1744759839124,-500.0,0.0003095,5]
[358138725,1744759839134,-500.0,0.0003095,5]
[358138726,1744759839145,-354.5,0.00031685,30]
[358138727,1744759839155,-500.0,0.00031873,5]
[358138728,1744759839165,-500.0,0.00031873,5]
[358138729,1744759839175,-500.72858497,0.00031873,5]
[358138730,1744759839185,-500.0,0.00031873,5]
[358138731,1744759839195,-500.0,0.00031873,2]
[358138732,1744759839205,-500.0,0.00031873,5]
[358138733,1744759839216,-500.0,0.00031873,5]
[358138734,1744759839226,-500.0,0.00031873,5]
[358138735,1744759839236,-185.3849883,0.00031873,5]
[358138736,1744759839246,-3337.76958275,0.0003189,2]
[358138737,1744759839257,-401.4,0.000319,31]
[358138739,1744759839267,-401.4,0.000319,31]
[358138741,1744759839277,-401.4,0.000319,31]
[358138742,1744759839287,-401.4,0.000319,31]
[358138743,1744759839298,-401.4,0.000319,31]
[358138744,1744759839308,-401.4,0.000319,31]
[358138745,1744759839318,-401.4,0.000319,31]
[358138746,1744759839329,-401.4,0.000319,31]
[358138747,1744759839339,-401.4,0.000319,31]
[358138748,1744759839348,-401.4,0.000319,31]
[358138749,1744759839359,-401.4,0.000319,31]
[358138750,1744759839368,-401.4,0.000319,31]
[358138751,1744759839379,-401.4,0.000319,31]
[358138752,1744759839389,-401.4,0.000319,31]
[358138753,1744759839399,-401.4,0.000319,31]
[358138754,1744759839408,-401.4,0.000319,31]
[358138755,1744759839418,-401.4,0.000319,31]
[358138756,1744759839429,-401.4,0.000319,31]
[358138757,1744759839439,-401.4,0.000319,31]
[358138758,1744759839449,-401.4,0.000319,31]
[358138759,1744759839460,-401.4,0.000319,31]
[358138760,1744759839473,-401.4,0.000319,31]
[358138761,1744759839484,-401.4,0.000319,31]
[358138762,1744759839494,-401.4,0.000319,31]
[358138763,1744759839504,-160.0,0.00031924,2]
[358138764,1744759839515,-1333.0,0.00031945,120]
[358138765,1744759839525,-184.35512181,0.00032325,5]
[358138766,1744759839538,-500.0,0.00032325,5]
[358138767,1744759839548,-532.13721076,0.00032877,5]
[358138768,1744759839559,-199.0354419,0.00033,30]
[358138769,1744759839571,-282.0,0.00033,2]
[358138770,1744759839581,-282.0,0.00033,2]
[358138771,1744759839592,-180.00720029,0.00033092,10]
[358138772,1744759839602,-823.0,0.00033398,3]
[358138773,1744759839612,-185.55921264,0.00033753,2]
[358138774,1744759839622,-1030.25776386,0.00034361,5]
[358138775,1744759839633,-787.19046058,0.00034429,7]
[358138776,1744759839644,-787.19046058,0.00034429,7]
[358138777,1744759839654,-177.00346913,0.00035,30]
[358138778,1744759839664,-500.0,0.00035452,5]
[358138779,1744759839675,-1000.0,0.00035452,4]
[358138780,1744759839685,-239.28167108,0.00035562,7]
[358138781,1744759839695,-500.0,0.00035616,7]
[358138782,1744759839706,-336.58649368,0.00035616,7]
[358138783,1744759839716,-282.0,0.00036,2]
[358138784,1744759839725,-133.26620757,0.00036,2]
[358138785,1744759839744,-148.73379243,0.00036,2]
[358138786,1744759839754,-1152.0,0.00036305,3]
[358138787,1744759839764,-1000.0,0.00036429,5]
[358138788,1744759839775,-1000.0,0.00036429,5]
[358138789,1744759839785,-1000.0,0.00036429,5]
[358138790,1744759839796,-401.4,0.000365,31]
[358138791,1744759839807,-401.4,0.000365,31]
[358138792,1744759839817,-27.11316347,0.000365,31]
[358138793,1744759839835,-374.28683653,0.000365,31]
[358138794,1744759839845,-401.4,0.000365,31]
[358138795,1744759839855,-401.4,0.000365,31]
[358138796,1744759839865,-401.4,0.000365,31]
[358138797,1744759839875,-401.4,0.000365,31]
[358138798,1744759839886,-401.4,0.000365,31]
[358138799,1744759839895,-401.4,0.000365,31]
[358138800,1744759839905,-401.4,0.000365,31]
[358138801,1744759839917,-401.4,0.000365,31]
[358138802,1744759839928,-401.4,0.000365,31]
[358138803,1744759839938,-401.4,0.000365,31]
[358138804,1744759839947,-147.01854293,0.000365,31]
[358138805,1744759839961,-254.38145707,0.000365,31]
[358138806,1744759839971,-401.4,0.000365,31]
[358138807,1744759839981,-18.39009646,0.000365,31]
[358138808,1744759839993,-383.00990354,0.000365,31]
[358138809,1744759840003,-375.41827586,0.000365,31]
[358138810,1744759840015,-25.98172414,0.000365,31]
[358138811,1744759840025,-401.4,0.000365,31]
[358138812,1744759840035,-401.4,0.000365,31]
[358138813,1744759840045,-401.4,0.000365,31]
[358138814,1744759840055,-401.4,0.000365,31]
[358138815,1744759840065,-401.4,0.000365,31]
[358138816,1744759840074,-401.4,0.000365,31]
[358138817,1744759840084,-401.4,0.000365,31]
[358138818,1744759840094,-104.25520733,0.00036688,3]
[358138819,1744759840107,-55.74479267,0.00036688,3]
[358138820,1744759840117,-306.30605287,0.00037,120]
[358138821,1744759840127,-1000.0,0.00037352,5]
[358138822,1744759840137,-1000.0,0.00037352,5]
[358138823,1744759840147,-1000.0,0.00037352,5]
[358138824,1744759840157,-1000.0,0.00037352,2]
[358138825,1744759840167,-1000.0,0.00037352,5]
[358138826,1744759840178,-1000.0,0.00037352,5]
[358138827,1744759840190,-1000.0,0.00037352,5]
[358138828,1744759840201,-330.13270397,0.0003737,21]
[358138829,1744759840210,-160.0,0.00037651,4]
[358138830,1744759840220,-500.04707426,0.00037804,5]
[358138831,1744759840230,-160.0,0.00038614,5]
[358138832,1744759840240,-282.0,0.00039,2]
[358138833,1744759840250,-297.59292188,0.00039178,30]
[358138834,1744759840259,-161.70118386,0.000394,21]
[358138842,1744759841149,-1056.20556976,0.000394,21]
[358138843,1744759841160,-1613.0,0.00039466,5]
[358138844,1744759841171,-139.67650429,0.00039577,6]
[358138845,1744759841183,-20.32349571,0.00039577,6]
[358138846,1744759841194,-227.96,0.000399,7]
[358138847,1744759841204,-1237.8377995,0.0004,120]
[358138848,1744759841216,-146.04483233,0.0004,120]
[358138849,1744759841226,-901.73425455,0.0004,2]
[358138850,1744759841236,-321.5383389,0.0004,120]
[358138851,1744759841246,-172.71425139,0.0004,120]
[358138852,1744759841256,-210.46239428,0.0004,120]
[358138853,1744759841267,-171.35192398,0.0004,7]
[358138854,1744759841277,-802.26410045,0.0004,14]
[358138855,1744759841287,-495.39147456,0.0004,30]
[358138856,1744759841297,-160.0,0.00040541,7]
[358138857,1744759841307,-271.407245,0.00040564,2]
[358138858,1744759841318,-190.45268354,0.00040986,14]
[358138859,1744759841328,-400.0,0.00041,14]
[358138860,1744759841339,-500.0,0.00041034,30]
[358138861,1744759841349,-1000.0,0.00041096,6]
[358138862,1744759841360,-1000.0,0.00041096,6]
[358138863,1744759841370,-500.0,0.00041096,31]
[358138864,1744759841380,-500.0,0.00041096,31]
[358138865,1744759841390,-401.4,0.000412,31]
[358138866,1744759841400,-401.4,0.000412,31]
[358138867,1744759841410,-401.4,0.000412,31]
[358138868,1744759841420,-401.4,0.000412,31]
[358138869,1744759841430,-401.4,0.000412,31]
[358138870,1744759841441,-401.4,0.000412,31]
[358138871,1744759841451,-401.4,0.000412,31]
[358138872,1744759841461,-401.4,0.000412,31]
[358138873,1744759841471,-401.4,0.000412,31]
[358138874,1744759841482,-401.4,0.000412,31]
[358138875,1744759841492,-401.4,0.000412,31]
[358138876,1744759841502,-401.4,0.000412,31]
[358138877,1744759841512,-401.4,0.000412,31]
[358138878,1744759841522,-401.4,0.000412,31]
[358138879,1744759841532,-401.4,0.000412,31]
[358138880,1744759841542,-401.4,0.000412,31]
[358138881,1744759841554,-401.4,0.000412,31]
[358138882,1744759841564,-401.4,0.000412,31]
[358138883,1744759841574,-401.4,0.000412,31]
[358138884,1744759841585,-401.4,0.000412,31]
[358138885,1744759841595,-401.4,0.000412,31]
[358138886,1744759841605,-401.4,0.000412,31]
[358138887,1744759841615,-401.4,0.000412,31]
[358138888,1744759841625,-401.4,0.000412,31]
[358138889,1744759841635,-1000.0,0.00041233,20]
[358138890,1744759841645,-1000.0,0.00041233,20]
[358138891,1744759841655,-1000.0,0.0004137,20]
[358138892,1744759841665,-1000.0,0.0004137,20]
[358138893,1744759841675,-500.0,0.00041503,30]
[358138894,1744759841685,-160.0,0.00041504,8]
[358138895,1744759841695,-1000.0,0.00041507,20]
[358138896,1744759841704,-1000.0,0.00041507,20]
[358138897,1744759841714,-307.0,0.00041507,20]
[358138898,1744759841723,-1000.0,0.00041644,20]
[358138899,1744759841733,-500.0,0.00041651,30]
[358138900,1744759841743,-500.0,0.00041657,30]
[358138901,1744759841752,-500.0,0.00041705,30]
[358138902,1744759841762,-3337.76958275,0.00041771,3]
[358138903,1744759841772,-1000.0,0.00041781,20]
[358138904,1744759841781,-1000.0,0.00041918,20]
[358138905,1744759841791,-1003.18396191,0.00042,5]
[358138906,1744759841802,-500.0,0.00042049,30]
[358138907,1744759841812,-1000.0,0.00042055,20]
[358138908,1744759841822,-10429.15918,0.0004216,7]
[358138909,1744759841832,-160.0,0.0004216,7]
[358138910,1744759841842,-838.71732705,0.0004216,7]
[358138911,1744759841852,-700.0,0.00042177,60]
[358138912,1744759841862,-500.0,0.00042179,30]
[358138913,1744759841871,-1000.0,0.00042192,20]
[358138914,1744759841882,-500.0,0.00042228,30]
[358138915,1744759841892,-500.0,0.00042256,30]
[358138916,1744759841902,-500.0,0.00042324,30]
[358138917,1744759841914,-1000.0,0.00042329,20]
[358138918,1744759841924,-500.0,0.00042349,30]
[358138919,1744759841942,-152.61504102,0.00042466,30]
[358138920,1744759841955,-1000.0,0.00042466,20]
[358138921,1744759841965,-160.0,0.00042467,9]
[358138922,1744759841975,-191.23960976,0.00042513,30]
[358138923,1744759841987,-500.0,0.0004254,30]
[358138924,1744759841997,-1000.0,0.00042603,20]
[358138925,1744759842009,-500.0,0.00042673,30]
[358138926,1744759842019,-700.0,0.00042725,60]
[358138927,1744759842029,-500.0,0.00042729,30]
[358138928,1744759842039,-1000.0,0.0004274,20]
[358138929,1744759842050,-267.10234325,0.00042795,90]
[358138930,1744759842061,-500.0,0.00042815,30]
[358138931,1744759842070,-152.61504102,0.00042849,30]
[358138932,1744759842080,-1000.0,0.00042877,20]
[358138933,1744759842090,-2258.0,0.00042902,5]
[358138934,1744759842100,-500.0,0.00042928,30]
[358138935,1744759842110,-787.19046058,0.00043,7]
[358138936,1744759842120,-651.77777451,0.00043,7]
[358138937,1744759842130,-787.19046058,0.00043,7]
[358138938,1744759842141,-651.77777451,0.00043,7]
[358138939,1744759842151,-787.19046058,0.00043,7]
[358138940,1744759842161,-535.44255378,0.00043,7]
[358138941,1744759842172,-535.44255378,0.00043,7]
[358138942,1744759842182,-787.19046058,0.00043,7]
[358138943,1744759842192,-160.0,0.00043,7]
[358138944,1744759842203,-420.08908737,0.00043,7]
[358138945,1744759842214,-669.02390172,0.00043,120]
[358138946,1744759842224,-156.14729779,0.00043,120]
[358138947,1744759842234,-162.0,0.00043,90]
[358138948,1744759842244,-500.0,0.00043014,2]
[358138949,1744759842254,-1000.0,0.00043014,20]
[358138950,1744759842265,-162.0,0.00043014,90]
[358138951,1744759842276,-328.4837737,0.00043093,4]
[358138952,1744759842286,-160.0,0.00043133,30]
[358138953,1744759842297,-420.08908737,0.00043133,30]
[358138954,1744759842308,-500.0,0.00043134,30]
[358138955,1744759842318,-1000.0,0.00043151,20]
[358138956,1744759842329,-500.0,0.00043188,30]
[358138957,1744759842339,-3337.76958275,0.00043198,3]
[358138958,1744759842350,-500.0,0.00043208,30]
[358138959,1744759842360,-500.0,0.0004322,30]
[358138960,1744759842370,-152.61504102,0.00043233,30]
[358138961,1744759842384,-500.0,0.00043263,30]
[358138962,1744759842394,-700.0,0.00043273,60]
[358138963,1744759842405,-1000.0,0.00043288,20]
[358138964,1744759842415,-500.0,0.00043376,30]
[358138965,1744759842426,-499.04847587,0.00043416,30]
[358138966,1744759842437,-500.0,0.00043417,30]
[358138967,1744759842448,-1000.0,0.00043425,20]
[358138968,1744759842458,-160.0,0.0004343,10]
[358138969,1744759842468,-420.08908737,0.00043523,2]
[358138970,1744759842478,-500.0,0.00043529,30]
[358138971,1744759842489,-500.0,0.00043544,30]
[358138972,1744759842498,-750.91,0.00043552,30]
[358138973,1744759842508,-1000.0,0.00043562,20]
[358138974,1744759842519,-150.18,0.00043579,30]
[358138975,1744759842529,-152.61504102,0.00043589,30]
[358138976,1744759842539,-160.0,0.00043593,2]
[358138977,1744759842549,-160.0,0.00043593,2]
[358138978,1744759842562,-150.5,0.0004366,120]
[358138979,1744759842574,-150.5,0.0004366,30]
[358138980,1744759842584,-928.0,0.0004366,120]
[358138981,1744759842594,-373.69,0.00043669,30]
[358138982,1744759842604,-311.41,0.00043669,30]
[358138983,1744759842614,-259.51,0.00043669,30]
[358138984,1744759842624,-216.26,0.00043669,30]
[358138985,1744759842634,-180.21,0.00043669,30]
[358138986,1744759842644,-150.5,0.0004367,120]
[358138987,1744759842653,-150.5,0.0004367,30]
[358138988,1744759842664,-928.0,0.0004367,120]
[358138989,1744759842673,-500.0,0.00043673,10]
[358138990,1744759842683,-500.0,0.00043673,10]
[358138991,1744759842693,-500.0,0.00043673,10]
[358138992,1744759842703,-500.39998957,0.00043673,10]
[358138993,1744759842713,-260.29676011,0.00043673,10]
[358138994,1744759842723,-500.0,0.00043673,10]
[358138995,1744759842733,-500.0,0.00043673,10]
[358138996,1744759842744,-501.94191919,0.00043673,10]
[358138997,1744759842754,-502.5192238,0.00043673,10]
[358138998,1744759843029,-501.14047489,0.00043673,10]
[358138999,1744759843041,-501.11201665,0.00043673,10]
[358139000,1744759843052,-506.39052573,0.00043673,10]
[358139001,1744759843062,-500.28232219,0.00043673,10]
[358139002,1744759843071,-284.03716427,0.00043673,10]
[358139003,1744759843082,-500.1886179,0.00043673,10]
[358139004,1744759843091,-500.72160479,0.00043673,10]
[358139005,1744759843101,-500.0,0.00043673,10]
[358139006,1744759843110,-500.0,0.00043673,2]
[358139007,1744759843120,-500.70183418,0.00043673,10]
[358139008,1744759843130,-501.16096392,0.00043673,10]
[358139009,1744759843139,-631.78178285,0.00043673,10]
[358139010,1744759843149,-503.58641947,0.00043673,10]
[358139011,1744759843158,-500.99332473,0.00043673,10]
[358139012,1744759843168,-502.17657197,0.00043673,10]
[358139013,1744759843177,-501.80104827,0.00043673,10]
[358139014,1744759843187,-500.0,0.00043673,10]
[358139015,1744759843196,-501.47878109,0.00043673,10]
[358139016,1744759843205,-500.0,0.0004368,60]
[358139017,1744759843215,-150.5,0.0004368,120]
[358139018,1744759843224,-150.5,0.0004368,30]
[358139019,1744759843234,-928.0,0.0004368,120]
[358139020,1744759843244,-26702.156662,0.0004368,3]
[358139021,1744759843253,-608.09640816,0.0004368,3]
[358139022,1744759843263,-160.0,0.00043689,120]
[358139023,1744759843273,-406.03254942,0.00043689,10]
[358139024,1744759843282,-1724.4957987,0.0004369,2]
[358139025,1744759843474,-1867.854828,0.0004369,2]
[358139026,1744759843487,-24854.51088011,0.0004369,2]
[358139027,1744759843496,-2058.23959041,0.0004369,3]
[358139028,1744759843506,-62591.21014281,0.0004369,2]
[358139029,1744759843799,-716.5618136,0.0004369,2]
[358139030,1744759843812,-12907.36412238,0.0004369,2]
[358139031,1744759843837,-1759.24354994,0.0004369,2]
[358139034,1744759847007,-300.0,0.00029999,2]
[358139035,1744759847017,-162.0,0.0004,2]
[358139036,1744759847027,-162.0,0.00043,2]
[358139037,1744759847037,-3044.21,0.0004368,10]
[358139038,1744759847047,-492.3924,0.0004369,2]
[358139078,1744761031779,-250.0,0.000254,2]
[358139079,1744761031789,-312.5017938,0.00027,3]
[358139080,1744761031798,-160.0,0.00027,3]
[358139081,1744761031808,-153.33,0.000273,31]
[358139082,1744761031817,-153.33,0.000273,31]
[358139083,1744761031826,-153.33,0.000273,31]
[358139084,1744761031835,-153.33,0.000273,31]
[358139085,1744761031845,-153.33,0.000273,31]
[358139086,1744761031854,-312.5017938,0.00028,10]
[358139087,1744761031863,-266.690413,0.00030137,2]
[358139088,1744761031872,-3532.02681161,0.00031685,2]
[358139126,1744761037843,-421.88026558,0.00031685,2]
[358139128,1744761037852,-266.9442,0.00031685,30]
[358139130,1744761037862,-400.0,0.00031898,3]
[358139132,1744761037871,-400.0,0.00031898,2]
[358139134,1744761037881,-160.0,0.00031899,2]